[Event "Titled Tuesday Blitz August 22 Early 2023"]
[White "micke12a"]
[Black "Romero Ruscalleda, Josep"]
[BlackFideId "2231859"]
[WhiteElo "2317"]
[BlackElo "2416"]
[Result "0-1"]
[Round "9"]
[TimeControl "180+1"]
[Date "2023.08.22"]
[WhiteClock "0:00:23"]
[BlackClock "0:00:26"]
[Board "144"]

1. e4 {[%clk 0:03:00]}  g6 {[%clk 0:03:00]} 2. d4 {[%clk 0:02:57]}  Bg7 {[%clk 0:03:01]} 3. Nc3 {[%clk 0:02:58]}  d6 {[%clk 0:03:02]} 4. Be3 {[%clk 0:02:57]}  a6 {[%clk 0:03:01]} 5. h4 {[%clk 0:02:56]}  h5 {[%clk 0:03:00]} 6. Bd3 {[%clk 0:02:53]}  b5 {[%clk 0:03:00]} 7. f4 {[%clk 0:02:54]}  Nh6 {[%clk 0:02:59]} 8. a4 {[%clk 0:02:44]}  b4 {[%clk 0:02:57]} 9. Na2 {[%clk 0:02:42]}  a5 {[%clk 0:02:53]} 10. Be2 {[%clk 0:02:40]}  Ba6 {[%clk 0:02:45]} 11. Nf3 {[%clk 0:02:38]}  Bxe2 {[%clk 0:02:43]} 12. Qxe2 {[%clk 0:02:38]}  Nd7 {[%clk 0:02:41]} 13. c3 {[%clk 0:02:39]}  Rb8 {[%clk 0:02:39]} 14. cxb4 {[%clk 0:02:16]}  axb4 {[%clk 0:02:38]} 15. Qc4 {[%clk 0:02:16]}  Ng4 {[%clk 0:02:32]} 16. Bd2 {[%clk 0:02:15]}  c5 {[%clk 0:02:31]} 17. e5 {[%clk 0:02:08]}  Nb6 {[%clk 0:02:11]} 18. Qb5+ {[%clk 0:02:00]}  Qd7 {[%clk 0:02:11]} 19. exd6 {[%clk 0:01:44]}  exd6 {[%clk 0:01:58]} 20. Qd3 {[%clk 0:01:11]}  Nxa4 {[%clk 0:01:37]} 21. O-O {[%clk 0:01:10]}  O-O {[%clk 0:01:36]} 22. dxc5 {[%clk 0:01:08]}  Nxc5 {[%clk 0:01:34]} 23. Qd5 {[%clk 0:01:05]}  Bxb2 {[%clk 0:01:23]} 24. Rab1 {[%clk 0:01:03]}  Nf6 {[%clk 0:01:11]} 25. Qc4 {[%clk 0:00:58]}  Ba3 {[%clk 0:01:03]} 26. Nxb4 {[%clk 0:00:57]}  Nce4 {[%clk 0:00:56]} 27. Be1 {[%clk 0:00:46]}  d5 {[%clk 0:00:51]} 28. Qd4 {[%clk 0:00:46]}  Rfc8 {[%clk 0:00:31]} 29. Rb3 {[%clk 0:00:44]}  Rc4 {[%clk 0:00:27]} 30. Qe5 {[%clk 0:00:29]}  Qa7+ {[%clk 0:00:26]} 31. Kh2 {[%clk 0:00:23]}  Ng4+ {[%clk 0:00:26]} 0-1


[Site "https://www.chess.com"]

[Event "Titled Tuesday Blitz August 22 Early 2023"]
[White "Osinovsky, Stepan"]
[Black "MateoReyes"]
[WhiteFideId "4157354"]
[WhiteElo "2313"]
[BlackElo "2416"]
[Result "0-1"]
[Round "9"]
[TimeControl "180+1"]
[Date "2023.08.22"]
[WhiteClock "0:00:04"]
[BlackClock "0:01:04"]
[Board "145"]

1. e4 {[%clk 0:02:59]}  c5 {[%clk 0:02:58]} 2. Nf3 {[%clk 0:02:59]}  d6 {[%clk 0:02:58]} 3. d3 {[%clk 0:02:59]}  Nc6 {[%clk 0:02:57]} 4. g3 {[%clk 0:03:00]}  e5 {[%clk 0:02:57]} 5. Bg2 {[%clk 0:03:00]}  Nge7 {[%clk 0:02:57]} 6. O-O {[%clk 0:02:58]}  g6 {[%clk 0:02:57]} 7. c3 {[%clk 0:02:57]}  Bg7 {[%clk 0:02:57]} 8. Be3 {[%clk 0:02:55]}  O-O {[%clk 0:02:57]} 9. d4 {[%clk 0:02:55]}  b6 {[%clk 0:02:55]} 10. Na3 {[%clk 0:02:50]}  Bb7 {[%clk 0:02:54]} 11. Nc4 {[%clk 0:02:44]}  Ba6 {[%clk 0:02:50]} 12. Qa4 {[%clk 0:02:42]}  Bxc4 {[%clk 0:02:47]} 13. Qxc4 {[%clk 0:02:43]}  Rc8 {[%clk 0:02:46]} 14. dxc5 {[%clk 0:02:40]}  dxc5 {[%clk 0:02:43]} 15. Bh3 {[%clk 0:02:25]}  Rc7 {[%clk 0:02:39]} 16. Rfd1 {[%clk 0:02:23]}  Qa8 {[%clk 0:02:38]} 17. Rd6 {[%clk 0:02:14]}  Na5 {[%clk 0:02:34]} 18. Qa4 {[%clk 0:02:09]}  c4 {[%clk 0:02:32]} 19. Rad1 {[%clk 0:01:53]}  Qxe4 {[%clk 0:02:28]} 20. Bg2 {[%clk 0:01:53]}  Qf5 {[%clk 0:02:17]} 21. Rd7 {[%clk 0:01:47]}  Rxd7 {[%clk 0:02:12]} 22. Qxd7 {[%clk 0:01:46]}  Nec6 {[%clk 0:02:09]} 23. Qxf5 {[%clk 0:01:41]}  gxf5 {[%clk 0:02:08]} 24. Nh4 {[%clk 0:01:37]}  f4 {[%clk 0:01:59]} 25. gxf4 {[%clk 0:01:35]}  exf4 {[%clk 0:01:59]} 26. Bxf4 {[%clk 0:01:36]}  Re8 {[%clk 0:01:59]} 27. Nf5 {[%clk 0:01:26]}  Bf8 {[%clk 0:01:56]} 28. Bd5 {[%clk 0:01:09]}  Re2 {[%clk 0:01:53]} 29. b4 {[%clk 0:01:09]}  cxb3 {[%clk 0:01:52]} 30. axb3 {[%clk 0:01:10]}  Ne5 {[%clk 0:01:42]} 31. Kf1 {[%clk 0:01:03]}  Ng6 {[%clk 0:01:38]} 32. Be3 {[%clk 0:00:58]}  Rb2 {[%clk 0:01:31]} 33. b4 {[%clk 0:00:56]}  Nb3 {[%clk 0:01:31]} 34. Bc4 {[%clk 0:00:49]}  h5 {[%clk 0:01:26]} 35. Rd8 {[%clk 0:00:46]}  h4 {[%clk 0:01:21]} 36. Bh6 {[%clk 0:00:45]}  h3 {[%clk 0:01:20]} 37. Ne7+ {[%clk 0:00:37]}  Nxe7 {[%clk 0:01:19]} 38. Bxf8 {[%clk 0:00:38]}  Nc6 {[%clk 0:01:17]} 39. Rc8 {[%clk 0:00:34]}  Nd2+ {[%clk 0:01:16]} 40. Ke1 {[%clk 0:00:33]}  Nxc4 {[%clk 0:01:13]} 41. Rxc6 {[%clk 0:00:31]}  Ne5 {[%clk 0:01:12]} 42. Rc8 {[%clk 0:00:31]}  Kh7 {[%clk 0:01:12]} 43. Bd6 {[%clk 0:00:30]}  Nd3+ {[%clk 0:01:09]} 44. Kd1 {[%clk 0:00:29]}  Nxf2+ {[%clk 0:01:09]} 45. Kc1 {[%clk 0:00:29]}  Ng4 {[%clk 0:01:09]} 46. Rc7 {[%clk 0:00:27]}  Rg2 {[%clk 0:01:07]} 47. Rxf7+ {[%clk 0:00:26]}  Kg6 {[%clk 0:01:07]} 48. Rxa7 {[%clk 0:00:25]}  Nxh2 {[%clk 0:01:07]} 49. Bxh2 {[%clk 0:00:26]}  Rxh2 {[%clk 0:01:07]} 50. Ra8 {[%clk 0:00:17]}  Rg2 {[%clk 0:01:06]} 51. Rg8+ {[%clk 0:00:04]}  Kh7 {[%clk 0:01:04]} 0-1


[Site "https://www.chess.com"]

[Event "Titled Tuesday Blitz August 22 Early 2023"]
[White "Hoffmann, Asa"]
[Black "Farmani Anosheh, Armin"]
[WhiteFideId "2001470"]
[BlackFideId "24613240"]
[WhiteElo "2281"]
[BlackElo "2410"]
[Result "0-1"]
[Round "9"]
[TimeControl "180+1"]
[Date "2023.08.22"]
[WhiteClock "0:00:17"]
[BlackClock "0:00:20"]
[Board "146"]

1. d4 {[%clk 0:02:42]}  Nf6 {[%clk 0:02:58]} 2. Bg5 {[%clk 0:02:39]}  d5 {[%clk 0:02:55]} 3. Nd2 {[%clk 0:02:36]}  c5 {[%clk 0:02:54]} 4. c3 {[%clk 0:02:35]}  cxd4 {[%clk 0:02:52]} 5. cxd4 {[%clk 0:02:34]}  Nc6 {[%clk 0:02:52]} 6. e3 {[%clk 0:02:34]}  Bf5 {[%clk 0:02:52]} 7. a3 {[%clk 0:02:30]}  e6 {[%clk 0:02:52]} 8. Ngf3 {[%clk 0:02:28]}  Be7 {[%clk 0:02:51]} 9. Be2 {[%clk 0:02:27]}  O-O {[%clk 0:02:51]} 10. Nh4 {[%clk 0:02:26]}  Be4 {[%clk 0:02:20]} 11. f3 {[%clk 0:02:19]}  Bg6 {[%clk 0:02:19]} 12. Nxg6 {[%clk 0:02:19]}  hxg6 {[%clk 0:02:19]} 13. Bf4 {[%clk 0:02:18]}  Nh5 {[%clk 0:02:14]} 14. Bg3 {[%clk 0:02:16]}  Nxg3 {[%clk 0:02:13]} 15. hxg3 {[%clk 0:02:16]}  e5 {[%clk 0:02:12]} 16. Nb3 {[%clk 0:02:10]}  exd4 {[%clk 0:02:09]} 17. Nxd4 {[%clk 0:02:05]}  Bf6 {[%clk 0:02:07]} 18. Nxc6 {[%clk 0:01:54]}  bxc6 {[%clk 0:02:07]} 19. Qc2 {[%clk 0:01:53]}  Qb6 {[%clk 0:02:04]} 20. Kf2 {[%clk 0:01:49]}  Rfe8 {[%clk 0:02:01]} 21. Qd3 {[%clk 0:01:44]}  Rad8 {[%clk 0:01:44]} 22. Rhe1 {[%clk 0:01:36]}  c5 {[%clk 0:01:44]} 23. Qb5 {[%clk 0:01:32]}  Bxb2 {[%clk 0:01:13]} 24. Qxb6 {[%clk 0:01:27]}  axb6 {[%clk 0:01:12]} 25. Rab1 {[%clk 0:01:27]}  Bc3 {[%clk 0:01:12]} 26. Red1 {[%clk 0:01:24]}  Re6 {[%clk 0:00:58]} 27. Rb3 {[%clk 0:01:12]}  Ba5 {[%clk 0:00:56]} 28. Rbd3 {[%clk 0:01:09]}  Red6 {[%clk 0:00:57]} 29. f4 {[%clk 0:01:05]}  c4 {[%clk 0:00:45]} 30. Rd4 {[%clk 0:01:03]}  Bc3 {[%clk 0:00:46]} 31. Bf3 {[%clk 0:00:56]}  Bxd4 {[%clk 0:00:43]} 32. Rxd4 {[%clk 0:00:52]}  f5 {[%clk 0:00:40]} 33. g4 {[%clk 0:00:51]}  Kf7 {[%clk 0:00:40]} 34. Ke2 {[%clk 0:00:50]}  Ke6 {[%clk 0:00:40]} 35. Kd2 {[%clk 0:00:50]}  b5 {[%clk 0:00:38]} 36. gxf5+ {[%clk 0:00:49]}  gxf5 {[%clk 0:00:38]} 37. g4 {[%clk 0:00:49]}  g6 {[%clk 0:00:38]} 38. Kc2 {[%clk 0:00:48]}  Ra6 {[%clk 0:00:37]} 39. Kb2 {[%clk 0:00:47]}  Ra4 {[%clk 0:00:36]} 40. Bd1 {[%clk 0:00:46]}  Ra5 {[%clk 0:00:35]} 41. gxf5+ {[%clk 0:00:46]}  gxf5 {[%clk 0:00:35]} 42. Bc2 {[%clk 0:00:45]}  Rb8 {[%clk 0:00:32]} 43. Rd1 {[%clk 0:00:40]}  b4 {[%clk 0:00:33]} 44. a4 {[%clk 0:00:40]}  b3 {[%clk 0:00:31]} 45. Bb1 {[%clk 0:00:39]}  Rxa4 {[%clk 0:00:21]} 46. Rh1 {[%clk 0:00:38]}  Rf8 {[%clk 0:00:21]} 47. Rh6+ {[%clk 0:00:36]}  Rf6 {[%clk 0:00:22]} 48. Rh8 {[%clk 0:00:35]}  Ra7 {[%clk 0:00:21]} 49. Re8+ {[%clk 0:00:34]}  Re7 {[%clk 0:00:21]} 50. Rd8 {[%clk 0:00:33]}  Rd7 {[%clk 0:00:20]} 51. Re8+ {[%clk 0:00:33]}  Kd6 {[%clk 0:00:18]} 52. Re5 {[%clk 0:00:32]}  Re7 {[%clk 0:00:18]} 53. Rxf5 {[%clk 0:00:28]}  Rxf5 {[%clk 0:00:18]} 54. Bxf5 {[%clk 0:00:27]}  Rxe3 {[%clk 0:00:19]} 55. Bg6 {[%clk 0:00:26]}  Rf3 {[%clk 0:00:19]} 56. f5 {[%clk 0:00:17]}  Kc5 {[%clk 0:00:20]} 0-1


[Site "https://www.chess.com"]

[Event "Titled Tuesday Blitz August 22 Early 2023"]
[White "Tomaszewski, Kacper"]
[Black "Ai, Evan"]
[WhiteFideId "1127373"]
[BlackFideId "2094770"]
[WhiteElo "2405"]
[BlackElo "2260"]
[Result "0-1"]
[Round "9"]
[TimeControl "180+1"]
[Date "2023.08.22"]
[WhiteClock "0:00:00"]
[BlackClock "0:00:08"]
[Board "148"]

1. g3 {[%clk 0:03:00]}  e5 {[%clk 0:02:59]} 2. Bg2 {[%clk 0:03:00]}  d5 {[%clk 0:02:59]} 3. d3 {[%clk 0:02:59]}  Nf6 {[%clk 0:02:53]} 4. a3 {[%clk 0:02:54]}  c6 {[%clk 0:02:53]} 5. c4 {[%clk 0:02:50]}  Be6 {[%clk 0:02:50]} 6. cxd5 {[%clk 0:02:48]}  cxd5 {[%clk 0:02:51]} 7. Nf3 {[%clk 0:02:47]}  Nc6 {[%clk 0:02:49]} 8. O-O {[%clk 0:02:40]}  a5 {[%clk 0:02:46]} 9. Nc3 {[%clk 0:02:36]}  h6 {[%clk 0:02:45]} 10. d4 {[%clk 0:02:28]}  e4 {[%clk 0:02:44]} 11. Ne5 {[%clk 0:02:28]}  Bd6 {[%clk 0:02:34]} 12. Nxc6 {[%clk 0:02:25]}  bxc6 {[%clk 0:02:35]} 13. Na4 {[%clk 0:02:22]}  O-O {[%clk 0:02:31]} 14. f3 {[%clk 0:02:22]}  exf3 {[%clk 0:02:22]} 15. exf3 {[%clk 0:02:20]}  Nd7 {[%clk 0:02:22]} 16. Be3 {[%clk 0:02:17]}  Nb6 {[%clk 0:02:20]} 17. Nc5 {[%clk 0:02:12]}  Nc4 {[%clk 0:02:12]} 18. Bf2 {[%clk 0:02:08]}  Bxc5 {[%clk 0:02:11]} 19. dxc5 {[%clk 0:02:08]}  Nxb2 {[%clk 0:02:11]} 20. Qe2 {[%clk 0:02:01]}  Nc4 {[%clk 0:02:11]} 21. Bd4 {[%clk 0:01:58]}  Bf5 {[%clk 0:02:10]} 22. g4 {[%clk 0:01:54]}  Re8 {[%clk 0:02:04]} 23. Qd1 {[%clk 0:01:52]}  Bg6 {[%clk 0:02:03]} 24. Re1 {[%clk 0:01:51]}  Rxe1+ {[%clk 0:01:55]} 25. Qxe1 {[%clk 0:01:52]}  Qg5 {[%clk 0:01:51]} 26. Qc3 {[%clk 0:01:45]}  h5 {[%clk 0:01:36]} 27. h3 {[%clk 0:01:42]}  hxg4 {[%clk 0:01:34]} 28. hxg4 {[%clk 0:01:42]}  f6 {[%clk 0:01:10]} 29. Rd1 {[%clk 0:01:35]}  Re8 {[%clk 0:01:06]} 30. Bf1 {[%clk 0:01:32]}  Qf4 {[%clk 0:00:54]} 31. Bxc4 {[%clk 0:01:30]}  Qg3+ {[%clk 0:00:49]} 32. Kf1 {[%clk 0:01:28]}  dxc4 {[%clk 0:00:49]} 33. Qxc4+ {[%clk 0:01:26]}  Kh7 {[%clk 0:00:48]} 34. Qc3 {[%clk 0:01:15]}  Qh2 {[%clk 0:00:38]} 35. Bf2 {[%clk 0:01:10]}  Qh1+ {[%clk 0:00:36]} 36. Bg1 {[%clk 0:01:10]}  Qh3+ {[%clk 0:00:30]} 37. Kf2 {[%clk 0:01:10]}  Qh4+ {[%clk 0:00:21]} 38. Kf1 {[%clk 0:01:05]}  Qg3 {[%clk 0:00:18]} 39. Bf2 {[%clk 0:00:53]}  Qh2 {[%clk 0:00:13]} 40. Re1 {[%clk 0:00:31]}  Qh1+ {[%clk 0:00:12]} 41. Bg1 {[%clk 0:00:31]}  Rxe1+ {[%clk 0:00:13]} 42. Qxe1 {[%clk 0:00:30]}  Qxf3+ {[%clk 0:00:13]} 43. Bf2 {[%clk 0:00:19]}  Qh3+ {[%clk 0:00:09]} 44. Kg1 {[%clk 0:00:17]}  Qxg4+ {[%clk 0:00:09]} 45. Bg3 {[%clk 0:00:17]}  Qd4+ {[%clk 0:00:08]} 46. Bf2 {[%clk 0:00:17]}  Qg4+ {[%clk 0:00:08]} 47. Bg3 {[%clk 0:00:17]}  Be4 {[%clk 0:00:07]} 48. Qe3 {[%clk 0:00:09]}  Qd1+ {[%clk 0:00:07]} 49. Be1 {[%clk 0:00:09]}  Qg4+ {[%clk 0:00:06]} 50. Bg3 {[%clk 0:00:09]}  Bf3 {[%clk 0:00:06]} 51. Qf4 {[%clk 0:00:07]}  Qxf4 {[%clk 0:00:06]} 52. Bxf4 {[%clk 0:00:08]}  g5 {[%clk 0:00:06]} 53. Bc7 {[%clk 0:00:08]}  a4 {[%clk 0:00:06]} 54. Kf2 {[%clk 0:00:09]}  Bd5 {[%clk 0:00:06]} 55. Kg3 {[%clk 0:00:08]}  Kg6 {[%clk 0:00:07]} 56. Bd8 {[%clk 0:00:07]}  f5 {[%clk 0:00:07]} 57. Bc7 {[%clk 0:00:06]}  f4+ {[%clk 0:00:07]} 58. Kg4 {[%clk 0:00:06]}  Be6+ {[%clk 0:00:07]} 59. Kf3 {[%clk 0:00:07]}  Kf5 {[%clk 0:00:08]} 60. Bb8 {[%clk 0:00:04]}  Bd5+ {[%clk 0:00:08]} 61. Kf2 {[%clk 0:00:05]}  g4 {[%clk 0:00:08]} 62. Kg1 {[%clk 0:00:05]}  Ke4 {[%clk 0:00:09]} 63. Bd6 {[%clk 0:00:05]}  g3 {[%clk 0:00:08]} 64. Bb8 {[%clk 0:00:04]}  Kf3 {[%clk 0:00:08]} 65. Bc7 {[%clk 0:00:04]}  Kg4 {[%clk 0:00:08]} 66. Bd6 {[%clk 0:00:03]}  f3 {[%clk 0:00:08]} 67. Kf1 {[%clk 0:00:03]}  Bc4+ {[%clk 0:00:08]} 68. Ke1 {[%clk 0:00:00]}  f2+ {[%clk 0:00:08]} 0-1


[Site "https://www.chess.com"]

[Event "Titled Tuesday Blitz August 22 Early 2023"]
[White "Ronka, Erik"]
[Black "Sarkar, Justin"]
[WhiteFideId "505080"]
[BlackFideId "2010011"]
[WhiteElo "2404"]
[BlackElo "2250"]
[Result "1-0"]
[Round "9"]
[TimeControl "180+1"]
[Date "2023.08.22"]
[WhiteClock "0:01:02"]
[BlackClock "0:00:00"]
[Board "149"]

1. e4 {[%clk 0:03:00]}  c5 {[%clk 0:02:41]} 2. a3 {[%clk 0:02:59]}  g6 {[%clk 0:02:36]} 3. b4 {[%clk 0:02:59]}  Bg7 {[%clk 0:02:36]} 4. Nc3 {[%clk 0:02:59]}  Nc6 {[%clk 0:02:29]} 5. Rb1 {[%clk 0:02:44]}  d6 {[%clk 0:02:12]} 6. Nge2 {[%clk 0:02:39]}  Nf6 {[%clk 0:02:05]} 7. g3 {[%clk 0:02:38]}  h5 {[%clk 0:01:36]} 8. h3 {[%clk 0:02:37]}  Nd4 {[%clk 0:00:40]} 9. Bg2 {[%clk 0:02:26]}  Bd7 {[%clk 0:00:34]} 10. bxc5 {[%clk 0:02:05]}  dxc5 {[%clk 0:00:34]} 11. e5 {[%clk 0:02:05]}  Nh7 {[%clk 0:00:24]} 12. f4 {[%clk 0:01:54]}  Rb8 {[%clk 0:00:16]} 13. O-O {[%clk 0:01:53]}  Bc6 {[%clk 0:00:14]} 14. Ne4 {[%clk 0:01:46]}  Nf8 {[%clk 0:00:10]} 15. c3 {[%clk 0:01:42]}  Nxe2+ {[%clk 0:00:06]} 16. Qxe2 {[%clk 0:01:43]}  Ne6 {[%clk 0:00:05]} 17. d3 {[%clk 0:01:20]}  Qd7 {[%clk 0:00:04]} 18. Be3 {[%clk 0:01:17]}  Rd8 {[%clk 0:00:03]} 19. Rbd1 {[%clk 0:01:15]}  b6 {[%clk 0:00:03]} 20. d4 {[%clk 0:01:12]}  cxd4 {[%clk 0:00:03]} 21. cxd4 {[%clk 0:01:13]}  Bd5 {[%clk 0:00:01]} 22. g4 {[%clk 0:01:01]}  hxg4 {[%clk 0:00:01]} 23. hxg4 {[%clk 0:01:02]}  Qb7 {[%clk 0:00:00]} 24. Bf2 {[%clk 0:01:02]} 1-0


[Site "https://www.chess.com"]

[Event "Titled Tuesday Blitz August 22 Early 2023"]
[White "AndresDelgado77"]
[Black "SergioMoralesG"]
[WhiteElo "2249"]
[BlackElo "2404"]
[Result "0-1"]
[Round "9"]
[TimeControl "180+1"]
[Date "2023.08.22"]
[WhiteClock "0:00:00"]
[BlackClock "0:00:03"]
[Board "150"]

1. e4 {[%clk 0:03:00]}  c5 {[%clk 0:02:43]} 2. Nf3 {[%clk 0:02:57]}  e6 {[%clk 0:02:43]} 3. c3 {[%clk 0:02:56]}  Nf6 {[%clk 0:02:43]} 4. Bd3 {[%clk 0:02:53]}  d5 {[%clk 0:02:40]} 5. e5 {[%clk 0:02:53]}  c4 {[%clk 0:02:39]} 6. Bc2 {[%clk 0:02:39]}  Nfd7 {[%clk 0:02:39]} 7. O-O {[%clk 0:02:37]}  Nc6 {[%clk 0:02:37]} 8. Re1 {[%clk 0:02:37]}  Qc7 {[%clk 0:02:36]} 9. Qe2 {[%clk 0:02:28]}  h6 {[%clk 0:02:18]} 10. b3 {[%clk 0:02:24]}  b5 {[%clk 0:01:30]} 11. a4 {[%clk 0:02:20]}  cxb3 {[%clk 0:01:25]} 12. Bxb3 {[%clk 0:02:19]}  b4 {[%clk 0:01:20]} 13. d4 {[%clk 0:01:48]}  Na5 {[%clk 0:01:15]} 14. Bxd5 {[%clk 0:01:42]}  exd5 {[%clk 0:01:07]} 15. e6 {[%clk 0:01:41]}  Nf6 {[%clk 0:01:05]} 16. Bf4 {[%clk 0:01:00]}  Qxf4 {[%clk 0:00:44]} 17. Qb5+ {[%clk 0:00:59]}  Kd8 {[%clk 0:00:39]} 18. Qxa5+ {[%clk 0:00:17]}  Qc7 {[%clk 0:00:38]} 19. e7+ {[%clk 0:00:17]}  Bxe7 {[%clk 0:00:24]} 20. Qxc7+ {[%clk 0:00:17]}  Kxc7 {[%clk 0:00:25]} 21. Rxe7+ {[%clk 0:00:18]}  Kd6 {[%clk 0:00:21]} 22. Rxf7 {[%clk 0:00:18]}  b3 {[%clk 0:00:14]} 23. Nbd2 {[%clk 0:00:17]}  b2 {[%clk 0:00:11]} 24. Rb1 {[%clk 0:00:17]}  Rb8 {[%clk 0:00:11]} 25. Rxg7 {[%clk 0:00:16]}  Bf5 {[%clk 0:00:10]} 26. Rf7 {[%clk 0:00:14]}  Bxb1 {[%clk 0:00:08]} 27. Nxb1 {[%clk 0:00:14]}  Ne4 {[%clk 0:00:05]} 28. Rxa7 {[%clk 0:00:10]}  Rhc8 {[%clk 0:00:04]} 29. h4 {[%clk 0:00:09]}  Nxc3 {[%clk 0:00:04]} 30. Ra6+ {[%clk 0:00:08]}  Ke7 {[%clk 0:00:04]} 31. Nxc3 {[%clk 0:00:06]}  Rxc3 {[%clk 0:00:02]} 32. Nd2 {[%clk 0:00:06]}  b1=Q+ {[%clk 0:00:02]} 33. Nxb1 {[%clk 0:00:06]}  Rxb1+ {[%clk 0:00:03]} 34. Kh2 {[%clk 0:00:07]}  Ra3 {[%clk 0:00:04]} 35. Rxh6 {[%clk 0:00:06]}  Rxa4 {[%clk 0:00:03]} 36. Rg6 {[%clk 0:00:05]}  Rxd4 {[%clk 0:00:03]} 37. g3 {[%clk 0:00:03]}  Rd2 {[%clk 0:00:03]} 38. Kh3 {[%clk 0:00:01]}  Rbb2 {[%clk 0:00:04]} 39. h5 {[%clk 0:00:02]}  Rxf2 {[%clk 0:00:03]} 40. h6 {[%clk 0:00:03]}  Rh2+ {[%clk 0:00:03]} 41. Kg4 {[%clk 0:00:03]}  Rb3 {[%clk 0:00:04]} 42. Kf5 {[%clk 0:00:03]}  Rf3+ {[%clk 0:00:03]} 43. Ke5 {[%clk 0:00:03]}  Rff2 {[%clk 0:00:04]} 44. Kxd5 {[%clk 0:00:01]}  Kf7 {[%clk 0:00:05]} 45. Rg7+ {[%clk 0:00:01]}  Kf8 {[%clk 0:00:05]} 46. Rg6 {[%clk 0:00:01]}  Rf7 {[%clk 0:00:05]} 47. g4 {[%clk 0:00:01]}  Re2 {[%clk 0:00:04]} 48. g5 {[%clk 0:00:00]}  Rh7 {[%clk 0:00:03]} 0-1


[Site "https://www.chess.com"]

[Event "Titled Tuesday Blitz August 22 Early 2023"]
[White "Rom, Jasper"]
[Black "Cagara, Paulina"]
[WhiteFideId "2023733"]
[BlackFideId "1124870"]
[WhiteElo "2396"]
[BlackElo "2157"]
[Result "0-1"]
[Round "9"]
[TimeControl "180+1"]
[Date "2023.08.22"]
[WhiteClock "0:00:00"]
[BlackClock "0:00:44"]
[Board "151"]

1. e4 {[%clk 0:02:59]}  c6 {[%clk 0:02:59]} 2. Nc3 {[%clk 0:02:56]}  d5 {[%clk 0:02:59]} 3. Nf3 {[%clk 0:02:56]}  Bg4 {[%clk 0:02:58]} 4. h3 {[%clk 0:02:55]}  Bxf3 {[%clk 0:02:57]} 5. Qxf3 {[%clk 0:02:55]}  e6 {[%clk 0:02:55]} 6. Be2 {[%clk 0:02:52]}  Nd7 {[%clk 0:02:54]} 7. d4 {[%clk 0:02:51]}  Bb4 {[%clk 0:02:47]} 8. Bd2 {[%clk 0:02:44]}  dxe4 {[%clk 0:02:47]} 9. Nxe4 {[%clk 0:02:42]}  Bxd2+ {[%clk 0:02:46]} 10. Nxd2 {[%clk 0:02:42]}  Ngf6 {[%clk 0:02:46]} 11. O-O {[%clk 0:02:42]}  O-O {[%clk 0:02:45]} 12. Bd3 {[%clk 0:02:42]}  Re8 {[%clk 0:02:42]} 13. Rad1 {[%clk 0:02:39]}  Nf8 {[%clk 0:02:42]} 14. Nc4 {[%clk 0:02:36]}  Qd5 {[%clk 0:02:35]} 15. Qg3 {[%clk 0:02:26]}  Rad8 {[%clk 0:02:30]} 16. b3 {[%clk 0:02:23]}  Ne4 {[%clk 0:02:24]} 17. Qe3 {[%clk 0:02:09]}  Nf6 {[%clk 0:02:18]} 18. Ne5 {[%clk 0:02:03]}  Ng6 {[%clk 0:02:16]} 19. Nf3 {[%clk 0:02:00]}  Qh5 {[%clk 0:02:13]} 20. Rfe1 {[%clk 0:01:58]}  Nh4 {[%clk 0:02:11]} 21. Ne5 {[%clk 0:01:51]}  Nd5 {[%clk 0:02:04]} 22. Qe4 {[%clk 0:01:31]}  Nc3 {[%clk 0:01:56]} 23. Qg4 {[%clk 0:01:29]}  Qxg4 {[%clk 0:01:55]} 24. hxg4 {[%clk 0:01:27]}  Nxd1 {[%clk 0:01:55]} 25. Rxd1 {[%clk 0:01:27]}  f6 {[%clk 0:01:51]} 26. Nc4 {[%clk 0:01:25]}  g6 {[%clk 0:01:47]} 27. Na5 {[%clk 0:01:08]}  Rd7 {[%clk 0:01:41]} 28. Be2 {[%clk 0:01:03]}  g5 {[%clk 0:01:40]} 29. g3 {[%clk 0:01:02]}  Ng6 {[%clk 0:01:39]} 30. c3 {[%clk 0:00:58]}  Red8 {[%clk 0:01:37]} 31. Re1 {[%clk 0:00:57]}  e5 {[%clk 0:01:36]} 32. Bc4+ {[%clk 0:00:56]}  Kg7 {[%clk 0:01:36]} 33. Be6 {[%clk 0:00:50]}  Re7 {[%clk 0:01:33]} 34. Bf5 {[%clk 0:00:48]}  exd4 {[%clk 0:01:32]} 35. Rd1 {[%clk 0:00:49]}  Ne5 {[%clk 0:01:25]} 36. Kg2 {[%clk 0:00:46]}  d3 {[%clk 0:01:21]} 37. f4 {[%clk 0:00:45]}  Ng6 {[%clk 0:01:09]} 38. Kf3 {[%clk 0:00:20]}  gxf4 {[%clk 0:01:03]} 39. gxf4 {[%clk 0:00:20]}  Nh4+ {[%clk 0:01:01]} 40. Kf2 {[%clk 0:00:15]}  Nxf5 {[%clk 0:01:01]} 41. gxf5 {[%clk 0:00:15]}  Re2+ {[%clk 0:00:57]} 42. Kf3 {[%clk 0:00:14]}  Rxa2 {[%clk 0:00:56]} 43. Nxb7 {[%clk 0:00:14]}  Rb8 {[%clk 0:00:52]} 44. Nc5 {[%clk 0:00:13]}  d2 {[%clk 0:00:52]} 45. b4 {[%clk 0:00:11]}  Rc2 {[%clk 0:00:50]} 46. Ne4 {[%clk 0:00:09]}  Rd8 {[%clk 0:00:46]} 47. Ke3 {[%clk 0:00:00]}  Kf7 {[%clk 0:00:44]} 0-1


[Site "https://www.chess.com"]

[Event "Titled Tuesday Blitz August 22 Early 2023"]
[White "Sailer, Mike"]
[Black "Hajiyev, Kanan"]
[WhiteFideId "2012901"]
[BlackFideId "13404148"]
[WhiteElo "2236"]
[BlackElo "2482"]
[Result "0-1"]
[Round "9"]
[TimeControl "180+1"]
[Date "2023.08.22"]
[WhiteClock "0:00:10"]
[BlackClock "0:01:31"]
[Board "153"]

1. e4 {[%clk 0:02:57]}  g6 {[%clk 0:02:58]} 2. h4 {[%clk 0:02:56]}  Bg7 {[%clk 0:02:59]} 3. h5 {[%clk 0:02:57]}  Nf6 {[%clk 0:02:58]} 4. Nc3 {[%clk 0:02:56]}  Nxh5 {[%clk 0:02:58]} 5. Rxh5 {[%clk 0:02:55]}  gxh5 {[%clk 0:02:59]} 6. Qxh5 {[%clk 0:02:55]}  e6 {[%clk 0:03:00]} 7. Nf3 {[%clk 0:02:51]}  Qf6 {[%clk 0:03:00]} 8. d4 {[%clk 0:02:49]}  Qg6 {[%clk 0:02:59]} 9. Qh4 {[%clk 0:02:46]}  Nc6 {[%clk 0:03:00]} 10. Be3 {[%clk 0:02:41]}  d6 {[%clk 0:02:50]} 11. O-O-O {[%clk 0:02:18]}  Bd7 {[%clk 0:02:50]} 12. d5 {[%clk 0:02:11]}  Ne5 {[%clk 0:02:45]} 13. Nxe5 {[%clk 0:02:09]}  Bxe5 {[%clk 0:02:42]} 14. dxe6 {[%clk 0:02:08]}  fxe6 {[%clk 0:02:29]} 15. Nb5 {[%clk 0:01:38]}  Bxb5 {[%clk 0:02:19]} 16. Bxb5+ {[%clk 0:01:37]}  c6 {[%clk 0:02:20]} 17. Bd3 {[%clk 0:01:30]}  Qf6 {[%clk 0:02:13]} 18. Qh5+ {[%clk 0:01:10]}  Qf7 {[%clk 0:02:12]} 19. Qh4 {[%clk 0:01:06]}  Bf6 {[%clk 0:02:12]} 20. Qh3 {[%clk 0:00:44]}  h5 {[%clk 0:01:53]} 21. f4 {[%clk 0:00:32]}  b6 {[%clk 0:01:47]} 22. e5 {[%clk 0:00:29]}  dxe5 {[%clk 0:01:41]} 23. fxe5 {[%clk 0:00:29]}  Bxe5 {[%clk 0:01:39]} 24. Bc4 {[%clk 0:00:19]}  Ke7 {[%clk 0:01:31]} 25. Bg5+ {[%clk 0:00:17]}  Bf6 {[%clk 0:01:31]} 26. Rf1 {[%clk 0:00:10]}  Bxg5+ {[%clk 0:01:31]} 0-1


[Site "https://www.chess.com"]